Cogmind - Beta 13 @@@ ROGUE MODE // 2024.04.18 @ 14:41:27 Player: lazy_engineer Result: Self-destructed Performance ------------- Evolutions (2) 1000 Regions Visited (5) 1000 Robots Destroyed (0) 0 Value Destroyed (0) 0 Prototype IDs (24) 480 Alien Tech Used (0) 0 Bonus (650) 650 TOTAL SCORE: 3130 Bonus ------- Pacifist 270 Follower Combat Kills 80 Aligned with FarCom 300 Cogmind --------- Core Integrity 503/550 Matter 231/300 Energy 100/100 System Corruption 0% Temperature Cool (0) Movement Core (250) Ox4 Location -8/Materials Parts ------- > --- POWER (2) -------- (None) > --- PROPULSION (4) --- (None) > --- UTILITY (3) ------ Medium Storage Unit Hacking Suite > --- WEAPON (2) ------- Longsword +1 > --- INVENTORY (10) --- Ion Engine Small Storage Unit Improved Signal Interpreter System Shield Assault Rifle Light Assault Rifle Grenade Launcher Mining Laser Heavy Hammer Heavy Flail Peak State ------------ > --- POWER ------------ Light Ion Engine Makeshift Power Source > --- PROPULSION ------- Improved Hover Unit Improved Hover Unit Improved Hover Unit Improved VTOL Module > --- UTILITY ---------- Medium Storage Unit Hacking Suite > --- WEAPON ----------- Longsword +1 > --- INVENTORY -------- Ion Engine Improved Hover Unit Small Storage Unit Improved Signal Interpreter Assault Rifle Light Assault Rifle Grenade Launcher Mining Laser Heavy Hammer [Rating: 28] Favorites ----------- Power Light Ion Engine Engine Light Ion Engine Propulsion Improved Hover Unit Wheel Wheel Hover Unit Improved Hover Unit Flight Unit Improved VTOL Module Utility Medium Storage Unit Storage Medium Storage Unit Hackware Hacking Suite Weapon Mining Laser Special Weapon Mining Laser Slashing Weapon Longsword +1 Build | -11 -10 -10 -10 -9 -8 ------- Run | Yrd Mat Min Exi Min Mat Slots Evolved 4 | . . . . . 4 Power 1 | . . . . . 1 Propulsion 2 | . . . . . 2 Utility 1 | . . . . . 1 Weapon . | . . . . . . Parts Attached 16 | 4 5 . . . 7 Power 3 | 1 1 . . . 1 Engine 3 | 1 1 . . . 1 Core . | . . . . . . Reactor . | . . . . . . Propulsion 8 | 2 2 . . . 4 Treads . | . . . . . . Leg . | . . . . . . Wheel 2 | 2 . . . . . Hover 5 | . 2 . . . 3 Flight 1 | . . . . . 1 Utility 3 | 1 1 . . . 1 Device . | . . . . . . Storage 2 | 1 1 . . . . Processor . | . . . . . . Hackware 1 | . . . . . 1 Protection . | . . . . . . Artifact . | . . . . . . Weapon 2 | . 1 . . . 1 Energy Gun . | . . . . . . Energy Cannon . | . . . . . . Ballistic Gun . | . . . . . . Ballistic Cannon . | . . . . . . Launcher . | . . . . . . Special Weapon 1 | . 1 . . . . Impact Weapon . | . . . . . . Slashing Weapon 1 | . . . . . 1 Piercing Weapon . | . . . . . . Special Melee Weapon . | . . . . . . Unidentified Prototypes 1 | . . . . . 1 Parts Lost 6 | . . . . . 6 Power 2 | . . . . . 2 Propulsion 4 | . . . . . 4 Utility . | . . . . . . Weapon . | . . . . . . Highest Loss Streak 6 | . . . . . 6 To Critical Strikes . | . . . . . . Average Slot Usage (%) 69 | . 60 71 71 71 76 Engine 14 | . 14 14 14 14 18 Wheel 1 | . 7 . . . . Hover 26 | . 19 28 28 28 32 Storage 13 | . 14 14 14 14 9 Hackware 1 | . . . . . 7 Special Weapon 9 | . 4 14 14 14 . Slashing Weapon 1 | . . . . . 9 Naked Turns . | . . . . . . Heaviest Build 20 | 10 14 14 14 14 20 Greatest Support 28 | 26 26 14 14 14 28 Greatest Overweight (x) 2 | . 1 . . . 2 Average Overweight (x) . | . . . . . . Largest Inventory Capacity 10 | 8 10 10 10 10 10 Average Capacity 9 | 6 9 10 10 10 10 Most Carried 10 | 5 9 9 10 10 10 Average Carried 7 | 2 6 8 9 10 8 Final Capacity 10 | 8 10 10 10 10 10 Final Carried 10 | 3 8 9 10 10 10 Class Distribution -------------------- 100% | Mutant Dominant Class ---------------- Mutant | -10/Materials Mutant | -10/Mines Mutant | -10/Exiles Mutant | -9/Mines Mutant | -8/Materials Resources | -11 -10 -10 -10 -9 -8 ----------- Run | Yrd Mat Min Exi Min Mat Matter Collected 258 | 176 64 18 . . . Remotely . | . . . . . . Salvage Created . | . . . . . . Parts . | . . . . . . Haulers Intercepted . | . . . . . . Recyclers Shooed . | . . . . . . Parts Field Recycled . | . . . . . . Retrieved Matter . | . . . . . . Parts Self-Destructed . | . . . . . . Prevented . | . . . . . . Kills | -11 -10 -10 -10 -9 -8 ------- Run | Yrd Mat Min Exi Min Mat Combat Hostiles Destroyed . | . . . . . . Classes Destroyed . | . . . . . . Best Kill Streak . | . . . . . . Combat Bots Only . | . . . . . . Max Kills in Single Turn . | . . . . . . Gunslinging . | . . . . . . Exploded . | . . . . . . Melee . | . . . . . . Uniques/NPCs Destroyed . | . . . . . . Combat | -11 -10 -10 -10 -9 -8 -------- Run | Yrd Mat Min Exi Min Mat Hostile Shots Fired 48 | . 9 5 . . 34 Missed 18 | . 4 1 . . 13 Damage Taken 395 | . 54 31 . . 310 Core 69 | . 22 . . . 47 Absorbed by Shields . | . . . . . . Core Remaining (%) 95 | 100 . . . 91 . Volleys Fired . | . . . . . . Largest . | . . . . . . Hottest . | . . . . . . Shots Fired . | . . . . . . Gun . | . . . . . . Cannon . | . . . . . . Launcher . | . . . . . . Special . | . . . . . . Kinetic . | . . . . . . Thermal . | . . . . . . Explosive . | . . . . . . Electromagnetic . | . . . . . . Robot Hit Streak . | . . . . . . Robot Miss Streak . | . . . . . . Penetration Max . | . . . . . . Secondary Targets . | . . . . . . Shots Hit Robots . | . . . . . . Core Hits . | . . . . . . Critical Kills . | . . . . . . Critical Parts Destroyed . | . . . . . . Critical Strikes . | . . . . . . Melee Attacks 2 | . . . . . 2 Impact . | . . . . . . Slashing 2 | . . . . . 2 Piercing . | . . . . . . Sneak Attacks . | . . . . . . Combat Hostiles . | . . . . . . Follow-up Attacks . | . . . . . . Damage Inflicted 5 | . 5 . . . . Guns . | . . . . . . Cannons . | . . . . . . Explosions . | . . . . . . Melee . | . . . . . . Ramming 5 | . 5 . . . . Kinetic . | . . . . . . Thermal . | . . . . . . Explosive . | . . . . . . Electromagnetic . | . . . . . . Impact . | . . . . . . Slashing . | . . . . . . Piercing . | . . . . . . Highest Corruption 1 | . 1 1 1 1 . Average Corruption 1 | . 1 1 1 1 . Corruption Purged . | . . . . . . Corruption Blocked . | . . . . . . Effects 2 | . 1 1 . . . Message Errors 1 | . 1 . . . . Heat Flow Errors 1 | . . 1 . . . Overload Shots . | . . . . . . Overflow Damage . | . . . . . . Projectiles . | . . . . . . Explosions . | . . . . . . Melee . | . . . . . . Knockbacks . | . . . . . . Impact . | . . . . . . Kinetic . | . . . . . . Secondary . | . . . . . . Self-Inflicted Damage 2 | . 2 . . . . Shots . | . . . . . . Rammed 1 | . 1 . . . . Targets Rammed 1 | . 1 . . . . Kicked . | . . . . . . Crushed . | . . . . . . Highest Temperature 230 | . . 230 . . 23 Average Temperature 72 | . . 122 . . 9 Received Heat Transfer 138 | . 30 . . . 108 Siege Activations . | . . . . . . Robots Corrupted . | . . . . . . Combat Hostiles . | . . . . . . Parts Fried . | . . . . . . Impact Corruptions . | . . . . . . Robots Melted . | . . . . . . Combat Hostiles . | . . . . . . Parts Melted . | . . . . . . Heat Transferred . | . . . . . . Parts Sabotaged . | . . . . . . Parts Stolen . | . . . . . . Parts Stripped . | . . . . . . Power Chain Reactions . | . . . . . . Alert | -11 -10 -10 -10 -9 -8 ------- Run | Yrd Mat Min Exi Min Mat Peak Influence 140 | . 113 96 . . 140 Initial 43 | . . 43 . . . Average 44 | . 29 47 . . 99 Maximum Alert Level . | . . . . . . Low Security (%) 100 | 100 100 100 . 100 100 Level 1 . | . . . . . . Level 2 . | . . . . . . Level 3 . | . . . . . . Level 4 . | . . . . . . Level 5 . | . . . . . . High Security . | . . . . . . Max Security . | . . . . . . Squads Dispatched 6 | . 3 . . 1 2 Investigation 3 | . 2 . . . 1 Extermination . | . . . . . . Reinforcement 2 | . 1 . . . 1 Assault 1 | . . . . 1 . Garrison . | . . . . . . Intercept . | . . . . . . Searches Triggered . | . . . . . . Construction Impeded . | . . . . . . Haulers Reinforced . | . . . . . . Active Scanning Responses . | . . . . . . Cargo Convoy Interrupts . | . . . . . . Stealth | -11 -10 -10 -10 -9 -8 --------- Run | Yrd Mat Min Exi Min Mat Distress Signals 2 | . 2 . . . . Communications Jammed . | . . . . . . Distress Signals . | . . . . . . Times Spotted 18 | . 9 3 . . 6 Peak Tracking Total 6 | . 6 3 . . 3 Tactical Retreats 3 | . 2 . . . 1 Traps | -11 -10 -10 -10 -9 -8 ------- Run | Yrd Mat Min Exi Min Mat Traps Triggered 1 | . . . . . 1 Indirectly . | . . . . . . Trap Hack Attempts . | . . . . . . Triggered . | . . . . . . Disarmed . | . . . . . . Reprogrammed . | . . . . . . Reused . | . . . . . . Traps Extracted . | . . . . . . Installed . | . . . . . . Triggered . | . . . . . . Machines | -11 -10 -10 -10 -9 -8 ---------- Run | Yrd Mat Min Exi Min Mat Machines Disabled . | . . . . . . Max in Single Turn . | . . . . . . Machines Repaired . | . . . . . . Machines Dismantled . | . . . . . . Machines Sabotaged . | . . . . . . Overloaded Fab Kills . | . . . . . . Hacking | -11 -10 -10 -10 -9 -8 --------- Run | Yrd Mat Min Exi Min Mat Machines Accessed 4 | . 3 . 1 . . Terminals 3 | . 3 . . . . Fabricators . | . . . . . . Repair Stations . | . . . . . . Recycling Units . | . . . . . . Scanalyzers . | . . . . . . Garrison Access . | . . . . . . Total Hacks 11 | . 10 . 1 . . Successful 2 | . 1 . 1 . . Failed 9 | . 9 . . . . Catastrophic 3 | . 3 . . . . Database Lockouts . | . . . . . . Manual 11 | . 10 . 1 . . Terminals 10 | . 10 . . . . Fabricators . | . . . . . . Repair Stations . | . . . . . . Recycling Units . | . . . . . . Scanalyzers . | . . . . . . Garrison Access . | . . . . . . Terminal Hacks 2 | . 1 . 1 . . Branch Access Points 1 | . 1 . . . . Derelict Proto ID Bank 1 | . . . 1 . . Fabricator Hacks . | . . . . . . Repair Station Hacks . | . . . . . . Recycling Unit Hacks . | . . . . . . Scanalyzer . | . . . . . . Garrison Access Hacks . | . . . . . . Unauthorized Hacks . | . . . . . . Terminals . | . . . . . . Fabricators . | . . . . . . Repair Stations . | . . . . . . Recycling Units . | . . . . . . Scanalyzers . | . . . . . . Garrison Access . | . . . . . . Data Cores Recovered . | . . . . . . Used . | . . . . . . Hacking Detections 3 | . 3 . . . . Full Trace Events 3 | . 3 . . . . Feedback Events 1 | . 1 . . . . Corruption 1 | . 1 . . . . Feedback Blocked . | . . . . . . Robot Schematics Acquired . | . . . . . . Robots Built . | . . . . . . Authchips . | . . . . . . Time . | . . . . . . Total Robot Build Rating . | . . . . . . Part Schematics Acquired . | . . . . . . Parts Built . | . . . . . . Authchips . | . . . . . . Time . | . . . . . . Total Part Build Rating . | . . . . . . Parts Repaired . | . . . . . . Time . | . . . . . . Parts Recycled . | . . . . . . Recycled Matter . | . . . . . . Retrieved Matter . | . . . . . . Retrieved Components . | . . . . . . Parts Scanalyzed . | . . . . . . Part Schematics Acquired . | . . . . . . Parts Damaged . | . . . . . . Bothacking | -11 -10 -10 -10 -9 -8 ------------ Run | Yrd Mat Min Exi Min Mat Used RIF Installer . | . . . . . . Robots Hacked . | . . . . . . Non-combat . | . . . . . . Combat . | . . . . . . Robot Hacks Applied . | . . . . . . Relay Couplers Released . | . . . . . . Fabnet Peak Effective % . | . . . . . . Robots Rewired . | . . . . . . Allies Hacked . | . . . . . . Hacks Repelled . | . . . . . . Allies | -11 -10 -10 -10 -9 -8 -------- Run | Yrd Mat Min Exi Min Mat Total Allies 3 | . . 2 . 1 . Largest Group 2 | . . 2 1 1 1 Highest-Rated Group 45 | . . 45 31 31 31 Highest-Rated Ally 31 | . . 31 31 31 31 Total Orders . | . . . . . . Ally Attacks 11 | . . 5 . . 6 Total Damage 212 | . . 106 . . 106 Kills 5 | . . 3 . . 2 Allies Corrupted . | . . . . . . Allies Melted . | . . . . . . Intel | -11 -10 -10 -10 -9 -8 ------- Run | Yrd Mat Min Exi Min Mat Robot Analysis Total . | . . . . . . Derelict Logs Recovered 1 | . . 1 . . . Drone Launches . | . . . . . . Drone Recoveries . | . . . . . . Exploration | -11 -10 -10 -10 -9 -8 ------------- Run | Yrd Mat Min Exi Min Mat Turns Passed 933 | 44 192 355 140 72 130 Spaces Moved 1120 | 39 278 403 212 31 157 Core 4 | 4 . . . . . Treads . | . . . . . . Legs . | . . . . . . Wheels 91 | 35 56 . . . . Hover 1025 | . 222 403 212 31 157 Flight . | . . . . . . Fastest Speed 48 | 50 56 56 56 56 48 Average Speed 58 | 85 63 56 56 56 54 Slowest Speed 180 | 90 120 56 56 56 180 Overloaded Moves . | . . . . . . Propulsion Burnouts . | . . . . . . Robots Hopped . | . . . . . . Cave-ins Triggered . | . . . . . . Exploration Rate (%) 38 | 3 51 95 60 6 14 Regions Visited 5 Branch Regions 3 Pre-discovered Areas 2 | . . 2 . . . Known Exits Taken 1 | . 1 . . . . Unknown Exits Taken 4 | 1 . 1 1 1 . Scrap Searched 2 | . . 2 . . . Spaces Dug 1 | . . . . . 1 Terrain Destroyed 1 | . . . . . 1 Melee 1 | . . . . . 1 Projectile . | . . . . . . AOE . | . . . . . . Terrain Rammed . | . . . . . . Walls Destroyed . | . . . . . . Machines Disabled . | . . . . . . Actions | -11 -10 -10 -10 -9 -8 --------- Run | Yrd Mat Min Exi Min Mat Total 1387 | 49 293 531 232 85 197 Wait 228 | . . 128 20 55 25 Move 1115 | 38 277 402 211 30 157 Hop . | . . . . . . Pick Up 22 | 7 8 1 1 . 5 Fast Attach . | . . . . . . Attach 10 | 4 2 . . . 4 Detach . | . . . . . . Swap 6 | . 3 . . . 3 Drop 3 | . 2 . . . 1 Fire . | . . . . . . Melee 2 | . . . . . 2 Ram 1 | . 1 . . . . Kick . | . . . . . . Crush . | . . . . . . Escape Stasis . | . . . . . . Rewire . | . . . . . . Trap . | . . . . . . Miscellaneous . | . . . . . . Route ------- -11/Scrapyard -10/Materials (discovered 3 exits: [*Mat x2] / *Min) -10/Mines (discovered 3 exits: [*Mat x2] / *Exi) -10/Exiles -9/Mines -8/Materials History --------- Turn | Location | Event 21 | -11/Scrapyard | Discovered new exit (range 14) 45 | -11/Scrapyard | Entered Materials 137 | -10/Materials | Discovered new exit (range 10) 188 | -10/Materials | Discovered new exit (range 9) 204 | -10/Materials | Identified exit to Mines 237 | -10/Materials | Entered Mines 246 | -10/Mines | Learned location of Recycling (-9) 310 | -10/Mines | Build established: Mutant 463 | -10/Mines | Discovered new exit (range 5) 476 | -10/Mines | Learned location of Storage (-9) 543 | -10/Mines | Discovered new exit (range 6) 579 | -10/Mines | Deemed a non-threat by the Exiles lab entrance 579 | -10/Mines | Discovered new exit (range 5) 592 | -10/Mines | Entered Exiles 592 | -10/Exiles | Accompanied by 1 ally 606 | -10/Exiles | Met 8R-AWN 622 | -10/Exiles | Led the pair of lost Derelicts to a safe place 636 | -10/Exiles | Met EX-HEX 653 | -10/Exiles | Met EX-BIN 660 | -10/Exiles | Aligned with FarCom system 660 | -10/Exiles | Given EX-Vault access code 674 | -10/Exiles | Opened EX-Vault 677 | -10/Exiles | Found Longsword +1 690 | -10/Exiles | Warned to stay clear of 0b10 Research branches 706 | -10/Exiles | Met EX-DEC 726 | -10/Exiles | Discovered new exit (range 10) 732 | -10/Exiles | Left Exiles lab with Longsword +1 732 | -10/Exiles | Entered Mines 736 | -9/Mines | Discovered new exit (range 5) 739 | -9/Mines | Met a Derelict testing a Signal Generator 804 | -9/Mines | Entered Materials 804 | -8/Materials | Accompanied by 1 ally 804 | -8/Materials | Evolved 4 slots: Power x1, Propulsion x2, Utility x1 934 | -8/Materials | Self-destructed Last Messages --------------- 00815_ Acquired Imp. Signal Interpreter. 00825_ Acquired Hacking Suite. 00840_ U-05 Engineer builds a Wall. 00873_ O-16 Technician: "IFF HANDSHAKE FAILED. SECURING TERMINAL." 00877_ Acquired Prototype Flight Unit. 00878_ Identified Imp. VTOL Module. 00879_ ALERT: Hostiles spotted, dispatching reinforcements to Terminal M009. 00881_ Dropped Imp. VTOL Module. 00889_ Critical hit (Burn: +37). 00892_ Acquired Hvy. Flail. 00899_ Acquired System Shield. 00911_ Imp. Hover Unit destroyed. 00917_ Triggered Alarm Trap. 00917_ An alarm sounds. 00917_ ALERT: Alarm triggered, dispatching investigation squad. 00924_ Imp. Hover Unit destroyed. 00931_ Mak. Power Source destroyed. 00931_ Lgt. Ion Engine destroyed. 00934_ Imp. Hover Unit destroyed. Map ----- +----------------------------------------------------+ | | | | | | | | | | | ???????????????????????????????????############? | | ?????????????????????????????#####?? #? | | ???????????????????????????# # #? | | ???????????????????????????# """ # """ """ #? | | ???????????????????????????# """ # """ """ ! #? | | ???????????????????????????# """ # """ """ #? | | ???????????????????????????# # #? | | ???????????????????????????# # ! #? | | ???????????????????????##########+######+######? | | ???????????????????????# w +? | | ???????????????????????# ######? | | ?????????############### #######+########?????? | | ??####???# """ # / # #?????# ??????#####? | | ??# #???# """ # # ####### !????# #? | | ??# #???# """ # """ + # # #??# #? | | ??# #???# # """ # + # "" #??# #? | | ??# #???# # """ # # """# S"" #??# #? | | ?## ##??# # # # """# "" #??# #? | | ?# #######+####;##### # """########??# #? | | ?# Y # """########### #? | | ?# o hY @ + # [# #? | | ?# ######## ###/##### # """# # #? | | ?############# # ## # """#""" # #? | | ??????# ! + / #? # """#""" """ + #? | | ??????# # # """ #? # """#"S """ # #? | | ??????# "" # # """ #? # #""" """ # #? | | ??????# "T # #= """ #? ####### "" # #? | | ??????# "" # # #? ?????## # #? | | ??????# # ########?+??????########### #? | | ??????######## #?????????????????????????# #? | | ?????????????# #?????????????????????????# +? | | ????????????? ?????????????????????????# #? | | ????????????? ?????????????????????????# #? | | ????????????? ?????????????????????????? #? | | ????????????? ?????????????????????????? ? | | ?????????????#+##?????????????????????????? ? | | ??????????????????????????????????????????? ? | | ??????????????????????????????????????????? ?? | | ???????????????????????????????????????????????? | | ???????????????????????????????????????????????? | | ???????????????????????????????????????????????? | | ???????????????????????????????????????????????? | | ???????????????????????????????????????????????? | | ???????????????????????????????????????????????? | | ???????????????????????????????????????????????? | +----------------------------------------------------+ Best States ------------- Heat Dissipation 31 Energy Generation 20 Energy Capacity 250 Matter Stores 300 Matter Capacity 300 Sight Range 16 Terrain Scan Density 10 Evasion (%) 55 Offensive Hacking 10 Item Schematics ----------------- None Robot Schematics ------------------ None Fabricated ------------ Nothing Alien Tech Used ----------------- None Achievements -------------- None Challenges ------------ None Game ------ Seed GunAuthchipSegregator Manual? 0 Play Time 00:12:54 Cumulative 35.0 hours Start 2024.04.18 @ 14:31:10 End 2024.04.18 @ 14:41:27 Sessions 1 Manual Loads 0 Difficulty Rogue Special Mode None Game No. 69 Rogue 69 Adventurer 0 Explorer 0 Win Type - Total 0 Types 0/0/0/0/0/0/0/0/0 Lore% 24 Gallery% 28 Achievement% 25 Wizard Run 0 Options --------- Layout 0 ASCII 0 Keyboard 0 Movement Mouse Keybinds 0 Fullscreen 1 Font 24/Smallcaps Map View 76x50 Zoom Use 0% Tactical HUD 1 Map Filters NONE Filters NONE Steam 1 RUN: 8c4ec10f-733d-4b05-9296-628d4f51b46e